bitfinex/quotes_SOLUSD_20250316
["timestamp","ask_amount","ask_price","bid_price","bid_amount"]
[1742149813649,0.063,129.83,129.82,35.80725379]
[1742149814058,0.063,129.83,129.82,36.96222686]
[1742149817065,0.063,129.83,129.82,39.74743132]
[1742149818358,0.063,129.88,129.87,0.3]
[1742149818557,0.063,129.88,129.87,36.32279222]
[1742149819063,0.063,129.88,129.87,18.94964886]
[1742149820887,0.063,129.88,129.87,35.80495379]
[1742149821173,0.063,129.91,129.9,0.3]
[1742149821353,0.063,129.91,129.9,29.50279222]
[1742149822367,0.063,129.91,129.9,35.80345379]
[1742149826065,0.063,129.91,129.9,35.66129222]
[1742149826270,0.063,129.91,129.9,19.09181043]
[1742149828382,0.063,129.91,129.9,35.80345379]
[1742149832263,0.063,129.91,129.9,127.01443558]
[1742149832468,0.063,129.91,129.9,158.24738095]
[1742149832675,0.063,129.91,129.9,470.24738095]
[1742149832871,0.063,129.91,129.9,116.60345379]
[1742149833466,0.063,129.91,129.9,158.24738095]
[1742149833974,0.063,129.91,129.9,159.40134807]
[1742149834571,0.063,129.91,129.9,117.75742091]
[1742149835454,0.063,129.91,129.9,159.40134807]
[1742149835860,0.063,129.91,129.9,471.40134807]
[1742149836077,0.063,129.91,129.9,470.24738095]
[1742149836275,0.063,129.92,129.91,18.933972]
[1742149836451,0.063,129.92,129.91,30.49887973]
[1742149836656,0.063,129.93,129.91,30.49887973]
[1742149836657,0.063,129.93,129.92,0.3]
[1742149836859,0.063,129.93,129.92,29.64495379]
[1742149837460,0.063,129.94,129.93,0.3]
[1742149837670,0.03,129.96,129.95,25.390172]
[1742149837875,0.03,129.96,129.95,165.06508095]
[1742149838264,0.03,129.96,129.95,123.42115379]
[1742149838575,0.03,129.96,129.95,124.5747656]
[1742149839058,0.03,129.96,129.95,123.42115379]
[1742149840258,0.03,129.96,129.95,124.57487155]
[1742149840658,0.03,129.96,129.95,436.57487155]
[1742149840874,0.03,129.96,129.95,435.42115379]
[1742149841074,0.03,129.96,129.95,123.42115379]
[1742149841763,0.03,129.96,129.95,124.57487423]
[1742149843276,0.03,129.96,129.95,123.42115379]
[1742149843468,0.03,129.96,129.95,36.46495379]
[1742149843672,0.03,129.96,129.95,26.053972]
[1742149843866,0.03,129.96,129.95,19.09181043]
[1742149845869,0.03,129.96,129.95,35.65899222]
[1742149846071,0.03,129.96,129.95,35.80115379]
[1742149848782,0.03,129.96,129.95,33.55071677]
[1742149848964,0.03,129.96,129.95,22.99757341]
[1742149849680,0.03,129.96,129.95,19.09181043]
[1742149850286,0.03,129.96,129.95,25.24801043]
[1742149850480,0.03,129.96,129.95,35.65899222]
[1742149852370,0.03,129.96,129.95,19.09181043]
[1742149853385,0.03,129.96,129.95,18.94964886]
[1742149854496,10.44098179,129.96,129.95,18.94964886]
[1742149854794,0.03,129.96,129.95,18.94964886]
[1742149856694,0.03,129.96,129.95,29.36063065]
[1742149856879,0.03,129.96,129.95,35.51683065]
[1742149858079,0.03,129.96,129.95,25.10584886]
[1742149860605,0.03,129.96,129.95,18.94964886]
[1742149866194,0.03,129.96,129.94,0.063]
[1742149866195,20.85196358,129.96,129.94,0.063]
[1742149866404,10.41098179,129.95,129.94,0.063]
[1742149866700,16.56718179,129.95,129.94,0.063]
[1742149866900,18.11168179,129.95,129.94,0.063]
[1742149867891,18.11168179,129.95,129.91,0.3]
[1742149867892,20.0,129.92,129.91,0.3]
[1742149868092,30.41098179,129.92,129.91,0.3]
[1742149868480,36.56858179,129.92,129.89,0.3]
[1742149868792,10.41098179,129.9,129.89,0.3]
[1742149868985,10.41098179,129.91,129.9,0.3]
[1742149869202,10.41098179,129.91,129.89,0.3]
[1742149869203,16.22074693,129.91,129.89,0.3]
[1742149869399,16.22074693,129.9,129.88,0.363]
[1742149869601,16.22074693,129.89,129.88,0.363]
[1742149870385,16.22074693,129.89,129.88,0.063]
[1742149870800,22.37974693,129.89,129.88,0.063]
[1742149873099,22.37974693,129.89,129.88,0.363]
[1742149874098,22.37974693,129.89,129.88,0.063]
[1742149874494,1.5445,129.9,129.88,0.363]
[1742149874701,36.22074693,129.91,129.89,0.3]
[1742149874991,36.22074693,129.91,129.88,0.063]
[1742149874992,16.22074693,129.9,129.88,0.363]
[1742149875207,16.22074693,129.89,129.88,0.363]
[1742149876011,16.22074693,129.89,129.88,0.063]
[1742149876192,22.37974693,129.89,129.88,0.063]
[1742149877089,22.37974693,129.89,129.88,0.363]
[1742149877295,16.22074693,129.89,129.88,0.363]
[1742149877511,22.37974693,129.89,129.88,0.363]
[1742149878194,22.37974693,129.89,129.88,0.063]
[1742149878396,42.37974693,129.89,129.88,0.063]
[1742149878904,42.37974693,129.89,129.88,0.363]
[1742149879714,42.37974693,129.89,129.88,0.063]
[1742149881291,43.93654693,129.89,129.88,0.063]
[1742149881496,6.1576,129.92,129.88,0.363]
[1742149881704,20.0,129.9,129.89,0.3]
[1742149882709,15.3,129.9,129.89,0.3]
[1742149882898,36.22074693,129.91,129.89,0.3]
[1742149883221,16.22074693,129.91,129.89,0.3]
[1742149883432,16.22074693,129.91,129.9,0.3]
[1742149884225,16.22074693,129.92,129.91,0.3]
[1742149884803,16.22074693,129.93,129.91,0.3]
[1742149885130,16.22074693,129.92,129.91,0.3]
[1742149887721,16.22074693,129.91,129.9,0.3]
[1742149887923,16.22074693,129.91,129.89,0.3]
[1742149888230,16.22074693,129.9,129.89,0.3]
[1742149888932,22.37924693,129.9,129.89,0.3]
[1742149889137,16.542004,129.9,129.88,0.363]
[1742149889932,16.542004,129.9,129.89,0.3]
[1742149890238,16.542004,129.9,129.88,0.363]
[1742149890630,10.383504,129.89,129.88,0.063]
[1742149890942,10.383504,129.89,129.88,0.363]
[1742149891319,10.383504,129.89,129.88,0.063]
[1742149891733,10.383504,129.89,129.88,0.363]
[1742149892026,16.542504,129.89,129.88,0.063]
[1742149892323,10.383504,129.89,129.88,0.063]
[1742149893425,10.383504,129.9,129.88,0.063]
[1742149893623,10.383504,129.9,129.89,0.3]
[1742149894415,10.383504,129.9,129.88,0.063]
[1742149894609,10.383504,129.9,129.88,0.363]
[1742149894925,10.383504,129.9,129.89,0.3]
[1742149895129,10.383504,129.9,129.88,0.363]
[1742149895323,16.542004,129.9,129.88,0.363]
[1742149895528,10.383504,129.9,129.89,0.3]
[1742149895825,10.383504,129.9,129.88,0.363]
[1742149896234,6.1582,129.91,129.89,0.3]
[1742149896412,10.383504,129.9,129.88,0.363]
[1742149897629,16.542004,129.9,129.88,0.363]
[1742149898328,10.383504,129.89,129.88,0.063]
[1742149899135,10.383504,129.89,129.88,0.363]
[1742149899322,10.383504,129.89,129.88,0.063]
[1742149900034,10.383504,129.89,129.88,0.363]
[1742149900232,16.542304,129.9,129.88,0.363]
[1742149900736,10.383504,129.9,129.88,0.363]
[1742149901112,10.413504,129.9,129.88,0.363]
[1742149901434,10.413504,129.9,129.89,0.3]
[1742149901635,10.413504,129.9,129.88,0.363]
[1742149901815,10.413504,129.9,129.89,0.3]
[1742149902333,0.03,129.9,129.89,0.3]
[1742149902806,10.413504,129.9,129.89,0.3]
[1742149903234,16.572004,129.9,129.88,0.063]
[1742149903437,10.383504,129.89,129.88,0.363]
[1742149903934,10.383504,129.89,129.88,0.063]
[1742149904115,10.383504,129.89,129.88,0.363]
[1742149904738,10.383504,129.89,129.88,0.063]
[1742149905236,16.542504,129.89,129.88,0.063]
[1742149908242,10.383504,129.89,129.88,0.363]
[1742149908441,10.383504,129.89,129.88,0.063]
[1742149908742,10.383504,129.89,129.88,0.363]
[1742149909543,16.542504,129.89,129.88,0.363]
[1742149909745,10.383504,129.89,129.88,0.363]
[1742149910544,16.542504,129.89,129.88,0.063]
[1742149910842,10.383504,129.89,129.88,0.063]
[1742149911036,10.383504,129.89,129.88,0.363]
[1742149911230,10.383504,129.89,129.88,0.063]
[1742149912043,16.542504,129.89,129.88,0.363]
[1742149913831,16.542504,129.89,129.88,0.063]
[1742149914834,10.383504,129.89,129.88,0.063]
[1742149915042,0.03,129.9,129.88,0.363]
[1742149915351,0.03,129.9,129.89,0.3]
[1742149918041,0.03,129.9,129.89,35.49215286]
[1742149918250,0.03,129.9,129.89,35.776476]
[1742149919153,0.03,129.9,129.89,35.63431443]
[1742149921046,0.03,129.9,129.89,18.94964886]
[1742149921880,0.03,129.9,129.89,25.10864886]
[1742149922061,0.03,129.9,129.89,35.49215286]
[1742149924758,0.03,129.9,129.89,29.33315286]
[1742149925258,10.413504,129.9,129.89,0.3]
[1742149925459,0.03,129.9,129.89,0.3]
[1742149926654,6.1885,129.9,129.89,0.3]
[1742149926844,6.1885,129.9,129.88,0.363]
[1742149927241,16.572004,129.9,129.88,0.363]
[1742149927749,10.383504,129.89,129.88,0.063]
[1742149929349,16.542504,129.89,129.88,0.063]
[1742149937269,16.68466557,129.89,129.88,0.063]
[1742149937562,20.0,129.86,129.83,0.3]
[1742149937768,32.08226557,129.89,129.83,0.3]
[1742149937769,30.383504,129.85,129.83,0.3]
[1742149937943,36.544604,129.85,129.83,0.3]
[1742149938971,36.544604,129.85,129.84,0.3]
[1742149939169,36.544604,129.85,129.83,0.3]
[1742149939552,10.383504,129.84,129.83,0.3]
[1742149940057,20.0,129.86,129.84,0.3]
[1742149940265,30.383504,129.86,129.84,0.3]
[1742149940647,10.383504,129.85,129.83,0.3]
[1742149941043,20.0,129.86,129.84,0.3]
[1742149941350,16.572204,129.9,129.87,0.3]
[1742149941542,10.383504,129.89,129.87,0.3]
[1742149942152,10.413504,129.9,129.87,0.3]
[1742149942447,20.0,129.88,129.87,0.3]
[1742149943270,20.0,129.88,129.86,0.3]
[1742149943457,20.0,129.88,129.87,0.3]
[1742149947376,26.1595,129.88,129.86,0.3]
[1742149947569,36.543004,129.88,129.86,0.3]
[1742149947969,20.0,129.88,129.86,0.3]
[1742149948573,26.1595,129.88,129.86,0.3]
[1742149949162,20.0,129.88,129.87,0.3]
[1742149949673,20.0,129.88,129.86,0.3]
[1742149950372,10.383504,129.87,129.85,0.3]
[1742149950570,16.543604,129.87,129.85,0.3]
[1742149950762,6.1601,129.87,129.85,0.3]
[1742149950962,36.543204,129.88,129.86,0.3]
[1742149951370,36.543204,129.88,129.85,0.3]
[1742149951580,26.1597,129.88,129.86,0.3]
[1742149951959,36.543204,129.88,129.86,0.3]
[1742149955378,36.543204,129.88,129.83,35.19475286]
[1742149955379,10.383504,129.87,129.85,0.3]
[1742149955583,10.383504,129.87,129.84,0.3]
[1742149955759,10.383504,129.86,129.84,0.3]
[1742149956578,10.383504,129.87,129.84,0.3]
[1742149957361,16.543704,129.87,129.84,0.3]
[1742149958879,36.543204,129.88,129.85,0.3]
[1742149959477,10.383504,129.87,129.85,0.3]
[1742149959664,10.383504,129.87,129.84,0.3]
[1742149959864,36.543204,129.88,129.84,0.3]
[1742149960163,36.543204,129.88,129.85,0.3]
[1742149960571,36.573204,129.88,129.85,0.3]
[1742149963286,10.383504,129.87,129.85,0.3]
[1742149963581,10.383504,129.87,129.84,0.363]
[1742149963790,6.1604,129.86,129.84,0.363]
[1742149963992,6.1604,129.86,129.85,0.3]
[1742149964188,6.1604,129.86,129.84,0.363]
[1742149964376,6.1604,129.86,129.85,0.3]
[1742149964687,6.1604,129.86,129.84,0.363]
[1742149964886,6.1604,129.86,129.85,0.3]
[1742149965184,6.1604,129.86,129.84,0.363]
[1742149965594,6.1604,129.86,129.85,0.3]
[1742149966395,16.543904,129.86,129.84,0.063]
[1742149967672,16.543904,129.86,129.84,0.363]
[1742149967979,10.383504,129.85,129.84,0.063]
[1742149968174,20.0,129.82,129.81,0.063]
[1742149968385,30.383504,129.82,129.81,0.063]
[1742149969480,36.545804,129.82,129.81,0.063]
[1742149972692,30.383504,129.82,129.81,0.063]
[1742149972893,20.0,129.82,129.81,0.363]
[1742149973092,10.383504,129.86,129.83,0.3]
[1742149973390,10.383504,129.85,129.82,0.3]
[1742149973595,16.544404,129.85,129.82,0.3]
[1742149973986,10.383504,129.85,129.82,0.3]
[1742149974191,10.383504,129.85,129.83,0.3]
[1742149974412,16.544104,129.86,129.83,0.3]
[1742149974589,16.544104,129.86,129.82,0.3]
[1742149974778,16.544104,129.86,129.83,0.3]
[1742149974979,10.383504,129.85,129.83,0.3]
[1742149975180,10.383504,129.85,129.82,0.3]
[1742149975491,10.383504,129.85,129.83,0.3]
[1742149975694,16.544504,129.85,129.82,0.3]
[1742149975890,16.544504,129.85,129.83,0.3]
[1742149978400,16.544504,129.85,129.82,0.3]
[1742149978602,16.544504,129.85,129.83,0.3]
[1742149979903,16.544504,129.85,129.82,0.3]
[1742149980083,16.544504,129.85,129.83,0.3]
[1742149980283,20.0,129.84,129.83,0.3]
[1742149981177,20.0,129.84,129.82,0.3]
[1742149981492,30.383504,129.84,129.82,0.3]
[1742149981802,10.383504,129.83,129.81,0.063]
[1742149981993,16.545804,129.82,129.81,0.063]
[1742149983987,20.0,129.76,129.75,0.063]
[1742149984185,17.183504,129.77,129.75,0.063]
[1742149984381,17.183504,129.77,129.75,0.363]
[1742149984600,20.0,129.76,129.75,0.363]
[1742149984807,16.547404,129.79,129.77,0.3]
[1742149987206,10.383504,129.78,129.77,0.3]
[1742149987392,16.547404,129.79,129.77,0.3]
[1742149987594,6.1635,129.8,129.77,0.3]
[1742149987902,16.547004,129.8,129.78,0.3]
[1742149988100,10.383504,129.79,129.78,0.3]
[1742149988808,6.1638,129.79,129.78,0.3]
[1742149989589,6.1619,129.83,129.81,0.3]
[1742149989803,16.545404,129.83,129.81,0.3]
[1742149990117,6.1619,129.83,129.82,0.3]
[1742149990821,6.1616,129.84,129.82,0.3]
[1742149990984,6.1616,129.84,129.83,0.3]
[1742149991482,16.545104,129.84,129.83,0.3]
[1742149992489,6.1616,129.84,129.83,0.3]
[1742149993384,6.1604,129.86,129.83,0.3]
[1742149993593,6.1604,129.86,129.85,0.3]
[1742149993796,0.03,129.87,129.86,0.3]
[1742149994994,0.03,129.87,129.86,10.683504]
[1742149995195,0.03,129.87,129.86,29.47531443]
[1742149995609,0.03,129.87,129.86,18.94964886]
[1742149997009,0.03,129.87,129.86,29.47531443]
[1742149997219,0.03,129.87,129.86,35.30939814]
[1742149997717,0.03,129.87,129.86,35.45155971]
[1742149998017,0.03,129.88,129.87,19.233972]
[1742149998305,0.03,129.88,129.87,37.02325971]
[1742149999016,0.03,129.88,129.87,43.18325971]
[1742149999512,0.03,129.88,129.87,37.02325971]
[1742150000714,0.03,129.88,129.87,36.88109814]
[1742150001010,0.03,129.88,129.87,36.73893657]
[1742150001196,0.03,129.88,129.87,0.3]
[1742150002888,16.24758771,129.88,129.86,0.3]
[1742150003093,16.21758771,129.87,129.86,0.3]
[1742150003313,22.37758771,129.87,129.85,0.3]
[1742150003493,16.21758771,129.86,129.85,0.3]
[1742150006025,16.21758771,129.87,129.85,0.3]
[1742150006210,22.40718771,129.88,129.86,0.3]
[1742150006910,16.21758771,129.87,129.86,0.3]
[1742150007417,22.37758771,129.87,129.86,0.3]
[1742150008031,6.16,129.87,129.86,0.3]
[1742150009817,6.16,129.87,129.86,0.363]
[1742150009993,6.19,129.87,129.86,0.363]
[1742150010295,22.40758771,129.87,129.86,0.063]
[1742150010896,22.54974928,129.87,129.86,0.063]
[1742150011090,20.0,129.84,129.82,0.3]
[1742150011295,16.21758771,129.83,129.82,0.3]
[1742150012407,22.37948771,129.83,129.82,0.3]
[1742150013197,6.1619,129.83,129.82,0.3]
[1742150014324,6.1619,129.83,129.81,0.063]
[1742150014325,42.37908771,129.84,129.83,0.3]
[1742150016002,42.37818771,129.86,129.84,0.3]
[1742150016214,26.1606,129.86,129.84,0.3]
[1742150016415,16.21758771,129.85,129.84,0.3]
[1742150016706,16.21758771,129.85,129.83,0.3]
[1742150017020,16.21758771,129.85,129.84,0.3]
[1742150017223,16.21758771,129.85,129.83,0.3]
[1742150018302,6.1614,129.84,129.83,0.3]
[1742150018921,6.1614,129.84,129.82,0.3]
[1742150019101,16.21758771,129.83,129.81,0.363]
[1742150019449,16.21758771,129.82,129.81,0.363]
[1742150019724,16.21758771,129.83,129.82,0.3]
[1742150020626,22.37948771,129.83,129.82,0.3]
[1742150021939,22.37948771,129.83,129.81,0.063]
[1742150022223,16.21758771,129.8,129.78,0.3]
[1742150022520,16.21758771,129.79,129.78,0.3]
[1742150023413,16.21758771,129.79,129.77,0.3]
[1742150023618,0.14216157,129.82,129.77,0.3]
[1742150023619,16.21758771,129.78,129.77,0.3]
[1742150023925,16.21758771,129.79,129.78,0.3]
[1742150024127,22.38138771,129.79,129.78,0.3]
[1742150024504,22.38138771,129.79,129.77,0.3]
[1742150025043,16.21758771,129.78,129.77,0.3]
[1742150025409,16.21758771,129.78,129.76,0.3]
[1742150025630,21.5733,129.79,129.75,0.063]
[1742150025631,16.21758771,129.77,129.75,0.063]
[1742150025927,16.21758771,129.76,129.75,0.363]
[1742150026127,22.38278771,129.76,129.75,0.363]
[1742150026707,20.0,129.76,129.75,0.363]
[1742150028129,26.1652,129.76,129.75,0.363]
[1742150028329,42.38278771,129.76,129.75,0.363]
[1742150028532,42.38278771,129.76,129.75,0.063]
[1742150030225,42.66711085,129.76,129.75,0.0001]
[1742150030425,0.14216157,129.75,129.73,0.063]
[1742150030609,23.15974928,129.74,129.73,0.0001]
[1742150030814,23.30191085,129.74,129.73,0.0001]
[1742150031015,41.12569856,129.74,129.73,0.0001]
[1742150031322,24.90811085,129.74,129.73,0.0001]
[1742150032420,31.07421085,129.74,129.73,0.0001]
[1742150032758,30.93204928,129.74,129.73,0.0001]
[1742150033038,29.32584928,129.74,129.73,0.0001]
[1742150033354,16.21758771,129.74,129.73,0.0001]
[1742150033828,22.38368771,129.74,129.73,0.0001]
[1742150035541,22.66801085,129.74,129.73,0.0001]
[1742150037021,22.38368771,129.74,129.73,0.0001]
[1742150039233,16.21758771,129.74,129.73,0.0001]
[1742150039943,22.38368771,129.74,129.73,0.0001]
[1742150041255,22.38338771,129.75,129.73,0.0001]
[1742150041426,16.21758771,129.75,129.73,0.0001]
[1742150041628,22.38328771,129.75,129.73,0.0001]
[1742150042036,16.21758771,129.74,129.73,0.0001]
[1742150042530,22.38368771,129.74,129.73,0.0001]
[1742150043039,22.66801085,129.74,129.73,0.0001]
[1742150044260,0.14216157,129.73,129.72,0.0001]
[1742150044423,29.32634928,129.73,129.72,0.0001]
[1742150045429,29.18418771,129.73,129.72,0.0001]
[1742150045835,22.38418771,129.73,129.72,0.0001]
[1742150049352,20.0,129.73,129.72,0.3001]
[1742150049552,0.03,129.75,129.73,18.94964886]
[1742150049733,0.03,129.75,129.74,0.3]
[1742150049938,6.1957,129.75,129.73,18.94964886]
[1742150050126,6.1957,129.75,129.73,0.3]
[1742150051154,6.1957,129.75,129.74,0.3]
[1742150051957,6.1957,129.75,129.73,0.3]
[1742150052258,16.21758771,129.74,129.72,0.0001]
[1742150052463,36.21758771,129.73,129.72,0.0001]
[1742150054072,42.38418771,129.73,129.72,0.0001]
[1742150054448,22.38418771,129.73,129.72,0.0001]
[1742150054850,22.66851085,129.73,129.71,0.0001]
[1742150055168,52.57733699,129.72,129.71,0.0001]
[1742150055338,36.21758771,129.72,129.71,0.0001]
[1742150056042,42.38468771,129.72,129.71,0.0001]
[1742150058269,58.74443699,129.72,129.71,0.0001]
[1742150058471,58.88659856,129.72,129.71,0.0001]
[1742150059769,42.66901085,129.72,129.71,0.0001]
[1742150060268,42.38468771,129.72,129.71,0.0001]
[1742150061850,42.52684928,129.72,129.71,0.0001]
[1742150062458,42.66901085,129.72,129.71,0.0001]
[1742150062659,42.52684928,129.72,129.71,0.0001]
[1742150069962,42.55684928,129.72,129.71,0.0001]
[1742150075773,58.91659856,129.72,129.71,0.0001]
[1742150076577,0.14216157,129.71,129.69,0.063]
[1742150076783,16.35974928,129.7,129.69,0.063]
[1742150077793,22.52774928,129.7,129.69,0.063]
[1742150079269,6.168,129.7,129.69,0.063]
[1742150079470,22.38558771,129.7,129.69,0.063]
[1742150080190,22.52774928,129.7,129.69,0.063]
[1742150082198,22.66991085,129.7,129.69,0.0001]
[1742150087101,16.87327135,129.7,129.69,0.0001]
[1742150093210,16.93627135,129.7,129.69,0.0001]
[1742150103707,16.65194821,129.7,129.69,0.0001]
[1742150112625,16.93627135,129.7,129.69,0.0001]
[1742150119323,16.79410978,129.7,129.69,0.0001]
[1742150119526,16.65194821,129.7,129.69,0.0001]
[1742150121405,6.231,129.7,129.69,0.0001]
[1742150121606,16.65194821,129.7,129.69,1.5042]
[1742150122104,6.231,129.7,129.69,1.5042]
[1742150122307,16.65194821,129.7,129.69,1.5042]
[1742150124027,16.65194821,129.7,129.69,0.0001]
[1742150136528,16.93627135,129.7,129.66,1.5041]
[1742150136711,30.42094821,129.67,129.65,6.4349]
[1742150136917,10.42094821,129.66,129.65,6.4349]
[1742150137523,10.42094821,129.66,129.65,0.0001]
[1742150137729,16.59084821,129.66,129.65,0.0001]
[1742150138736,0.14216157,129.65,129.64,0.0001]
[1742150139043,20.0,129.63,129.62,0.063]
[1742150139229,30.42094821,129.63,129.62,0.063]
[1742150140136,36.59234821,129.63,129.62,0.063]
[1742150141816,36.73450978,129.63,129.62,0.063]
[1742150148037,43.53450978,129.63,129.62,0.063]
[1742150149647,43.67667135,129.63,129.62,0.063]
[1742150153049,43.67667135,129.63,129.62,0.0001]
[1742150153427,53.84030369,129.63,129.62,0.0001]
[1742150160562,43.27719391,129.63,129.62,0.0001]
[1742150160738,43.53450978,129.63,129.62,0.0001]
[1742150161846,0.14216157,129.62,129.6,0.063]
[1742150162041,10.56310978,129.61,129.6,0.063]
[1742150162247,16.73540978,129.61,129.6,0.063]
[1742150163036,16.59324821,129.61,129.6,0.063]
[1742150168871,6.1721,129.62,129.6,0.363]
[1742150169162,6.1721,129.62,129.61,0.3]
[1742150169754,6.1721,129.62,129.6,0.363]
[1742150169953,16.59304821,129.62,129.6,0.063]
[1742150170175,10.42094821,129.61,129.6,0.063]
[1742150170670,16.59324821,129.61,129.6,0.063]
[1742150172273,0.14216157,129.6,129.59,0.063]
[1742150172571,10.56310978,129.6,129.59,0.063]
[1742150174368,6.1728,129.6,129.59,0.063]
[1742150174750,16.59374821,129.6,129.59,0.063]
[1742150175554,16.73590978,129.6,129.59,0.063]
[1742150176468,20.0,129.57,129.56,0.03]
[1742150176654,30.56310978,129.57,129.56,0.03]
[1742150176963,30.42094821,129.57,129.56,0.03]
[1742150178164,30.56310978,129.57,129.56,0.03]
[1742150178370,37.50527135,129.57,129.56,0.0001]
[1742150178568,43.67947135,129.57,129.56,0.0001]
[1742150179580,10.42094821,129.52,129.51,1.6645]
[1742150179753,10.42094821,129.52,129.49,0.03]
[1742150179754,20.0,129.5,129.49,0.03]
[1742150180048,20.0,129.5,129.49,0.33]
[1742150181461,26.1776,129.5,129.49,0.33]
[1742150181660,26.1776,129.5,129.49,0.03]
[1742150181661,36.59854821,129.5,129.49,0.03]
[1742150185477,36.74070978,129.5,129.49,0.03]
[1742150186975,26.1776,129.5,129.49,0.03]
[1742150187379,36.74070978,129.5,129.49,0.03]
[1742150188183,36.88287135,129.5,129.49,0.03]
[1742150188562,0.14216157,129.49,129.47,0.03]
[1742150188759,10.56310978,129.48,129.47,0.03]
[1742150189167,27.30471956,129.48,129.47,0.03]
[1742150189371,58.56756419,129.48,129.47,0.03]
[1742150190182,58.56756419,129.48,129.47,0.0001]
[1742150191267,20.0,129.45,129.42,1.6645]
[1742150191480,37.22094821,129.45,129.43,0.3]
[1742150192182,37.22094821,129.45,129.42,1.6645]
[1742150192183,10.42094821,129.44,129.42,0.3]
[1742150192366,10.42094821,129.43,129.41,0.3]
[1742150192572,10.42094821,129.44,129.42,0.3]
[1742150192771,10.42094821,129.44,129.41,0.3]
[1742150193083,16.60174821,129.44,129.42,0.3]
[1742150193387,10.42094821,129.44,129.43,0.3]
[1742150193583,43.40104821,129.45,129.43,0.3]
[1742150193755,43.42104821,129.45,129.41,0.3]
[1742150193962,43.42104821,129.45,129.43,0.3]
[1742150194393,10.42094821,129.44,129.43,0.3]
[1742150194777,10.42094821,129.44,129.42,8.0551]
[1742150194984,10.42094821,129.43,129.42,1.559]
[1742150195175,16.60184821,129.43,129.42,1.559]
[1742150195682,16.60184821,129.43,129.39,8.3551]
[1742150195863,20.0,129.41,129.39,8.3551]
[1742150196064,20.0,129.4,129.39,8.3551]
[1742150196466,30.42094821,129.4,129.39,8.0551]
[1742150196672,30.42094821,129.4,129.38,0.3]
[1742150196883,20.0,129.4,129.39,0.3]
[1742150197085,36.60274821,129.42,129.39,0.3]
[1742150197380,20.0,129.41,129.4,0.3]
[1742150197586,20.0,129.4,129.39,0.3]
[1742150198388,20.0,129.4,129.38,0.3]
[1742150198582,30.42094821,129.4,129.38,0.3]
[1742150198764,30.42094821,129.4,129.38,0.03]
[1742150199086,20.0,129.4,129.39,0.3]
[1742150199766,10.42094821,129.44,129.4,0.3]
[1742150199975,16.74300978,129.45,129.42,0.3]
[1742150200266,6.1799,129.45,129.44,0.3]
[1742150200467,6.1799,129.45,129.43,0.3]
[1742150200675,16.60084821,129.45,129.44,0.3]
[1742150201189,16.60084821,129.45,129.43,0.3]
[1742150201386,16.60134821,129.44,129.42,0.3]
[1742150201687,20.0,129.4,129.39,0.3]
[1742150202278,10.42094821,129.4,129.38,0.33]
[1742150202484,6.9,129.41,129.38,0.33]
[1742150202485,30.56310978,129.39,129.38,0.33]
[1742150202784,30.42094821,129.39,129.38,0.33]